[Event "Titled Tuesday Blitz May 9 Late 2023"]
[White "Paszewski, Mateusz"]
[Black "Bryant, Todd"]
[WhiteFideId "1141058"]
[BlackFideId "2031299"]
[WhiteElo "2223"]
[BlackElo "2363"]
[Result "1-0"]
[Round "03"]
[TimeControl "180+2"]
[Date "2023.05.09"]
[WhiteClock "0:02:06"]
[BlackClock "0:00:04"]

1. d4 {[%clk 0:03:00]}  Nf6 {[%clk 0:02:59]} 2. Nf3 {[%clk 0:03:01]}  g6 {[%clk 0:03:00]} 3. Nc3 {[%clk 0:02:59]}  d5 {[%clk 0:02:59]} 4. Bf4 {[%clk 0:03:00]}  Bg7 {[%clk 0:02:59]} 5. h4 {[%clk 0:03:00]}  h5 {[%clk 0:03:00]} 6. e3 {[%clk 0:03:00]}  O-O {[%clk 0:03:00]} 7. Be2 {[%clk 0:03:00]}  c5 {[%clk 0:02:58]} 8. Ne5 {[%clk 0:03:00]}  cxd4 {[%clk 0:02:57]} 9. exd4 {[%clk 0:03:00]}  Nc6 {[%clk 0:02:57]} 10. Qd2 {[%clk 0:02:56]}  Qa5 {[%clk 0:02:39]} 11. O-O-O {[%clk 0:02:46]}  Bf5 {[%clk 0:02:13]} 12. Kb1 {[%clk 0:02:36]}  Nb4 {[%clk 0:02:04]} 13. Bd3 {[%clk 0:02:32]}  Ne4 {[%clk 0:01:55]} 14. Bxe4 {[%clk 0:02:30]}  Bxe4 {[%clk 0:01:53]} 15. Rc1 {[%clk 0:02:27]}  Rac8 {[%clk 0:01:45]} 16. a3 {[%clk 0:02:26]}  f6 {[%clk 0:00:19]} 17. axb4 {[%clk 0:02:17]}  Qxb4 {[%clk 0:00:17]} 18. Nxe4 {[%clk 0:02:16]}  Qxd2 {[%clk 0:00:17]} 19. Nxd2 {[%clk 0:02:14]}  fxe5 {[%clk 0:00:17]} 20. Bxe5 {[%clk 0:02:14]}  Rxf2 {[%clk 0:00:18]} 21. Bxg7 {[%clk 0:02:12]}  Kxg7 {[%clk 0:00:18]} 22. Nf3 {[%clk 0:02:13]}  Rxg2 {[%clk 0:00:18]} 23. Rhg1 {[%clk 0:02:09]}  Rf2 {[%clk 0:00:14]} 24. Ne5 {[%clk 0:02:09]}  Kh7 {[%clk 0:00:10]} 25. Rxg6 {[%clk 0:02:07]}  Rf4 {[%clk 0:00:11]} 26. Re6 {[%clk 0:02:06]}  Rxh4 {[%clk 0:00:10]} 27. Rxe7+ {[%clk 0:02:06]}  Kh6 {[%clk 0:00:04]} 28. Rg1 {[%clk 0:02:06]} 1-0


[Site "https://www.chess.com"]

[Event "Titled Tuesday Blitz May 9 Late 2023"]
[White "Malicka, Maria"]
[Black "Bayo Milagro, Alvaro"]
[WhiteFideId "1197576"]
[BlackFideId "22275240"]
[WhiteElo "2227"]
[BlackElo "2270"]
[Result "1-0"]
[Round "03"]
[TimeControl "180+2"]
[Date "2023.05.09"]
[WhiteClock "0:00:43"]
[BlackClock "0:00:01"]

1. e4 {[%clk 0:03:00]}  e5 {[%clk 0:02:58]} 2. Nf3 {[%clk 0:03:00]}  Nc6 {[%clk 0:02:59]} 3. Nc3 {[%clk 0:03:00]}  Nf6 {[%clk 0:02:59]} 4. d4 {[%clk 0:03:00]}  exd4 {[%clk 0:02:59]} 5. Nxd4 {[%clk 0:03:01]}  Bb4 {[%clk 0:02:58]} 6. Nxc6 {[%clk 0:03:01]}  bxc6 {[%clk 0:02:58]} 7. Bd3 {[%clk 0:03:02]}  d5 {[%clk 0:02:56]} 8. exd5 {[%clk 0:03:03]}  cxd5 {[%clk 0:02:55]} 9. O-O {[%clk 0:03:03]}  O-O {[%clk 0:02:55]} 10. Bg5 {[%clk 0:03:03]}  c6 {[%clk 0:02:53]} 11. Qf3 {[%clk 0:03:03]}  Be7 {[%clk 0:02:48]} 12. h3 {[%clk 0:03:02]}  h6 {[%clk 0:02:46]} 13. Bh4 {[%clk 0:02:59]}  Rb8 {[%clk 0:02:39]} 14. Rab1 {[%clk 0:02:55]}  Rb4 {[%clk 0:02:37]} 15. Bg3 {[%clk 0:02:55]}  Bd6 {[%clk 0:02:31]} 16. Ne2 {[%clk 0:02:53]}  Ne4 {[%clk 0:02:18]} 17. Bxd6 {[%clk 0:02:52]}  Qxd6 {[%clk 0:02:18]} 18. Rfd1 {[%clk 0:02:50]}  Qb8 {[%clk 0:01:59]} 19. b3 {[%clk 0:02:45]}  Re8 {[%clk 0:01:56]} 20. c3 {[%clk 0:02:41]}  Rb7 {[%clk 0:01:51]} 21. Rbc1 {[%clk 0:02:41]}  Rbe7 {[%clk 0:01:46]} 22. Nd4 {[%clk 0:02:41]}  Bd7 {[%clk 0:01:37]} 23. c4 {[%clk 0:02:38]}  Ng5 {[%clk 0:01:11]} 24. Qh5 {[%clk 0:02:29]}  c5 {[%clk 0:01:05]} 25. Nf3 {[%clk 0:02:23]}  Nxf3+ {[%clk 0:01:01]} 26. Qxf3 {[%clk 0:02:22]}  d4 {[%clk 0:01:02]} 27. Qd5 {[%clk 0:02:17]}  Qc7 {[%clk 0:00:57]} 28. a3 {[%clk 0:01:59]}  a5 {[%clk 0:00:56]} 29. b4 {[%clk 0:01:56]}  axb4 {[%clk 0:00:55]} 30. axb4 {[%clk 0:01:57]}  Re5 {[%clk 0:00:45]} 31. Qf3 {[%clk 0:01:52]}  cxb4 {[%clk 0:00:45]} 32. Rb1 {[%clk 0:01:50]}  b3 {[%clk 0:00:36]} 33. Bf1 {[%clk 0:01:49]}  Ba4 {[%clk 0:00:31]} 34. Rxd4 {[%clk 0:01:49]}  g6 {[%clk 0:00:16]} 35. Qc3 {[%clk 0:01:40]}  Qc5 {[%clk 0:00:11]} 36. Ra1 {[%clk 0:01:27]}  Bc6 {[%clk 0:00:11]} 37. Rad1 {[%clk 0:01:24]}  Rb8 {[%clk 0:00:09]} 38. Qb2 {[%clk 0:01:23]}  Kh7 {[%clk 0:00:07]} 39. R4d3 {[%clk 0:01:15]}  Ree8 {[%clk 0:00:04]} 40. Qf6 {[%clk 0:01:07]}  Qe7 {[%clk 0:00:02]} 41. Qxe7 {[%clk 0:01:05]}  Rxe7 {[%clk 0:00:03]} 42. Rb1 {[%clk 0:01:05]}  Ba4 {[%clk 0:00:03]} 43. Rb2 {[%clk 0:01:05]}  Rc7 {[%clk 0:00:03]} 44. Rf3 {[%clk 0:01:04]}  Kg7 {[%clk 0:00:03]} 45. Bd3 {[%clk 0:01:02]}  Rd8 {[%clk 0:00:03]} 46. Kf1 {[%clk 0:01:02]}  Rcd7 {[%clk 0:00:04]} 47. Ke2 {[%clk 0:01:02]}  f5 {[%clk 0:00:04]} 48. g3 {[%clk 0:00:57]}  Kf6 {[%clk 0:00:04]} 49. Re3 {[%clk 0:00:57]}  Rd4 {[%clk 0:00:04]} 50. f4 {[%clk 0:00:52]}  R4d6 {[%clk 0:00:04]} 51. Kd2 {[%clk 0:00:51]}  Rd4 {[%clk 0:00:03]} 52. Kc3 {[%clk 0:00:52]}  R4d6 {[%clk 0:00:04]} 53. Rbe2 {[%clk 0:00:51]}  Bc6 {[%clk 0:00:02]} 54. Bb1 {[%clk 0:00:47]}  Rb8 {[%clk 0:00:02]} 55. Rb2 {[%clk 0:00:46]}  Be4 {[%clk 0:00:02]} 56. Bxe4 {[%clk 0:00:45]}  fxe4 {[%clk 0:00:03]} 57. Rxb3 {[%clk 0:00:44]}  Rxb3+ {[%clk 0:00:02]} 58. Kxb3 {[%clk 0:00:45]}  Rd1 {[%clk 0:00:02]} 59. Kc3 {[%clk 0:00:44]}  g5 {[%clk 0:00:03]} 60. fxg5+ {[%clk 0:00:44]}  hxg5 {[%clk 0:00:04]} 61. Rxe4 {[%clk 0:00:44]}  Rh1 {[%clk 0:00:04]} 62. Re3 {[%clk 0:00:44]}  Rxh3 {[%clk 0:00:04]} 63. Kd4 {[%clk 0:00:44]}  Rh1 {[%clk 0:00:04]} 64. Kd5 {[%clk 0:00:43]}  Rd1+ {[%clk 0:00:04]} 65. Kc6 {[%clk 0:00:43]}  Kf5 {[%clk 0:00:04]} 66. c5 {[%clk 0:00:43]}  Kg4 {[%clk 0:00:03]} 67. Kb7 {[%clk 0:00:43]}  Kh3 {[%clk 0:00:04]} 68. c6 {[%clk 0:00:43]}  Rb1+ {[%clk 0:00:04]} 69. Kc8 {[%clk 0:00:43]}  g4 {[%clk 0:00:04]} 70. c7 {[%clk 0:00:43]}  Rc1 {[%clk 0:00:04]} 71. Rd3 {[%clk 0:00:43]}  Kg2 {[%clk 0:00:01]} 72. Kd7 {[%clk 0:00:43]} 1-0


[Site "https://www.chess.com"]

[Event "Titled Tuesday Blitz May 9 Late 2023"]
[White "Bashkansky, Ethan"]
[Black "Erzhanov, Arman"]
[WhiteFideId "2071533"]
[BlackFideId "4138821"]
[WhiteElo "2360"]
[BlackElo "2138"]
[Result "0-1"]
[Round "03"]
[TimeControl "180+2"]
[Date "2023.05.09"]
[WhiteClock "0:00:04"]
[BlackClock "0:01:06"]

1. d4 {[%clk 0:03:00]}  d6 {[%clk 0:02:59]} 2. c4 {[%clk 0:03:01]}  e5 {[%clk 0:02:59]} 3. dxe5 {[%clk 0:03:01]}  dxe5 {[%clk 0:03:00]} 4. Qxd8+ {[%clk 0:03:02]}  Kxd8 {[%clk 0:03:01]} 5. Nf3 {[%clk 0:03:02]}  f6 {[%clk 0:03:01]} 6. g3 {[%clk 0:02:56]}  Be6 {[%clk 0:03:00]} 7. Nbd2 {[%clk 0:02:53]}  c6 {[%clk 0:02:58]} 8. Bg2 {[%clk 0:02:51]}  Nd7 {[%clk 0:02:58]} 9. O-O {[%clk 0:02:51]}  Kc7 {[%clk 0:02:58]} 10. Rd1 {[%clk 0:02:49]}  a5 {[%clk 0:02:57]} 11. a4 {[%clk 0:02:41]}  Nc5 {[%clk 0:02:57]} 12. Ne1 {[%clk 0:02:32]}  Ne7 {[%clk 0:02:52]} 13. Nd3 {[%clk 0:02:29]}  Nc8 {[%clk 0:02:51]} 14. Nxc5 {[%clk 0:02:27]}  Bxc5 {[%clk 0:02:52]} 15. Ne4 {[%clk 0:02:21]}  Be7 {[%clk 0:02:51]} 16. b3 {[%clk 0:02:17]}  Nb6 {[%clk 0:02:44]} 17. Bd2 {[%clk 0:02:12]}  Nd7 {[%clk 0:02:42]} 18. Bc3 {[%clk 0:02:07]}  Nc5 {[%clk 0:02:42]} 19. Nxc5 {[%clk 0:02:06]}  Bxc5 {[%clk 0:02:43]} 20. h4 {[%clk 0:01:56]}  b6 {[%clk 0:02:39]} 21. Kh2 {[%clk 0:01:53]}  Rhd8 {[%clk 0:02:38]} 22. Bh3 {[%clk 0:01:51]}  Bxh3 {[%clk 0:02:28]} 23. Kxh3 {[%clk 0:01:52]}  Bxf2 {[%clk 0:02:28]} 24. Kg4 {[%clk 0:01:41]}  g6 {[%clk 0:02:19]} 25. Rf1 {[%clk 0:01:37]}  f5+ {[%clk 0:02:13]} 26. Kf3 {[%clk 0:01:35]}  Bd4 {[%clk 0:02:12]} 27. Rac1 {[%clk 0:01:32]}  Bxc3 {[%clk 0:02:11]} 28. Rxc3 {[%clk 0:01:33]}  Rd2 {[%clk 0:02:11]} 29. e4 {[%clk 0:01:25]}  Rad8 {[%clk 0:02:08]} 30. exf5 {[%clk 0:01:18]}  gxf5 {[%clk 0:02:09]} 31. Ke3 {[%clk 0:01:18]}  Rg2 {[%clk 0:02:03]} 32. Rxf5 {[%clk 0:01:15]}  Rxg3+ {[%clk 0:02:03]} 33. Rf3 {[%clk 0:01:14]}  Rxf3+ {[%clk 0:01:59]} 34. Kxf3 {[%clk 0:01:15]}  Rd4 {[%clk 0:01:59]} 35. Kg3 {[%clk 0:01:11]}  Kd6 {[%clk 0:01:52]} 36. h5 {[%clk 0:01:01]}  h6 {[%clk 0:01:40]} 37. Rf3 {[%clk 0:00:51]}  Ke7 {[%clk 0:01:37]} 38. Re3 {[%clk 0:00:49]}  Kf6 {[%clk 0:01:36]} 39. c5 {[%clk 0:00:31]}  bxc5 {[%clk 0:01:34]} 40. Rc3 {[%clk 0:00:31]}  c4 {[%clk 0:01:30]} 41. bxc4 {[%clk 0:00:32]}  Kg5 {[%clk 0:01:28]} 42. Kf2 {[%clk 0:00:20]}  Kxh5 {[%clk 0:01:27]} 43. Ke3 {[%clk 0:00:17]}  Kg4 {[%clk 0:01:26]} 44. Rc1 {[%clk 0:00:17]}  h5 {[%clk 0:01:22]} 45. Rg1+ {[%clk 0:00:16]}  Kf5 {[%clk 0:01:23]} 46. Rh1 {[%clk 0:00:16]}  h4 {[%clk 0:01:23]} 47. Rf1+ {[%clk 0:00:15]}  Rf4 {[%clk 0:01:19]} 48. Rc1 {[%clk 0:00:14]}  h3 {[%clk 0:01:18]} 49. c5 {[%clk 0:00:14]}  Rxa4 {[%clk 0:01:18]} 50. Rf1+ {[%clk 0:00:14]}  Kg4 {[%clk 0:01:18]} 51. Rh1 {[%clk 0:00:15]}  Ra3+ {[%clk 0:01:17]} 52. Ke4 {[%clk 0:00:15]}  Kg3 {[%clk 0:01:17]} 53. Kxe5 {[%clk 0:00:15]}  Rd3 {[%clk 0:01:17]} 54. Ra1 {[%clk 0:00:13]}  Rd5+ {[%clk 0:01:16]} 55. Ke6 {[%clk 0:00:09]}  Rxc5 {[%clk 0:01:16]} 56. Ra3+ {[%clk 0:00:10]}  Kh4 {[%clk 0:01:15]} 57. Ra4+ {[%clk 0:00:10]}  Kg5 {[%clk 0:01:15]} 58. Ra3 {[%clk 0:00:08]}  h2 {[%clk 0:01:15]} 59. Rh3 {[%clk 0:00:08]}  Rc2 {[%clk 0:01:15]} 60. Kd6 {[%clk 0:00:08]}  a4 {[%clk 0:01:16]} 61. Kc7 {[%clk 0:00:03]}  a3 {[%clk 0:01:14]} 62. Rg3+ {[%clk 0:00:02]}  Kf4 {[%clk 0:01:14]} 63. Rg8 {[%clk 0:00:02]}  a2 {[%clk 0:01:11]} 64. Rf8+ {[%clk 0:00:02]}  Kg3 {[%clk 0:01:10]} 65. Rf1 {[%clk 0:00:03]}  Kg2 {[%clk 0:01:10]} 66. Rd1 {[%clk 0:00:02]}  h1=Q {[%clk 0:01:09]} 67. Rd6 {[%clk 0:00:03]}  Qh7+ {[%clk 0:01:07]} 68. Kb6 {[%clk 0:00:03]}  Rb2+ {[%clk 0:01:06]} 69. Ka5 {[%clk 0:00:04]}  Qa7# {[%clk 0:01:06]} 0-1


[Site "https://www.chess.com"]

[Event "Titled Tuesday Blitz May 9 Late 2023"]
[White "Chabris, Christopher"]
[Black "brm72"]
[WhiteFideId "2005263"]
[WhiteElo "2356"]
[BlackElo "2550"]
[Result "0-1"]
[Round "03"]
[TimeControl "180+2"]
[Date "2023.05.09"]
[WhiteClock "0:00:00"]
[BlackClock "0:00:04"]

1. e4 {[%clk 0:03:00]}  c6 {[%clk 0:02:59]} 2. d4 {[%clk 0:02:57]}  d5 {[%clk 0:03:00]} 3. e5 {[%clk 0:02:57]}  c5 {[%clk 0:03:00]} 4. c3 {[%clk 0:02:58]}  Nc6 {[%clk 0:03:00]} 5. Be2 {[%clk 0:02:58]}  Bf5 {[%clk 0:02:54]} 6. Nf3 {[%clk 0:02:58]}  e6 {[%clk 0:02:54]} 7. O-O {[%clk 0:02:58]}  Nh6 {[%clk 0:02:50]} 8. h3 {[%clk 0:02:57]}  Bg6 {[%clk 0:02:49]} 9. a3 {[%clk 0:02:45]}  Nf5 {[%clk 0:02:47]} 10. b4 {[%clk 0:02:44]}  cxd4 {[%clk 0:02:47]} 11. cxd4 {[%clk 0:02:44]}  Be7 {[%clk 0:02:41]} 12. g4 {[%clk 0:02:32]}  Nh4 {[%clk 0:02:40]} 13. Nxh4 {[%clk 0:02:32]}  Bxh4 {[%clk 0:02:41]} 14. f4 {[%clk 0:02:30]}  Be4 {[%clk 0:02:37]} 15. Be3 {[%clk 0:02:28]}  f5 {[%clk 0:01:52]} 16. Nc3 {[%clk 0:02:14]}  O-O {[%clk 0:01:45]} 17. g5 {[%clk 0:01:26]}  h6 {[%clk 0:01:45]} 18. gxh6 {[%clk 0:01:19]}  gxh6 {[%clk 0:01:45]} 19. Kh2 {[%clk 0:01:19]}  Kh7 {[%clk 0:01:43]} 20. Rg1 {[%clk 0:01:15]}  Rg8 {[%clk 0:01:43]} 21. Qd2 {[%clk 0:01:07]}  Qd7 {[%clk 0:01:08]} 22. Bb5 {[%clk 0:00:56]}  a6 {[%clk 0:01:00]} 23. Be2 {[%clk 0:00:48]}  Rxg1 {[%clk 0:00:48]} 24. Rxg1 {[%clk 0:00:48]}  Rg8 {[%clk 0:00:49]} 25. Qd1 {[%clk 0:00:32]}  Rg7 {[%clk 0:00:38]} 26. Bh5 {[%clk 0:00:30]}  Ne7 {[%clk 0:00:19]} 27. a4 {[%clk 0:00:24]}  Qc6 {[%clk 0:00:17]} 28. Rxg7+ {[%clk 0:00:22]}  Kxg7 {[%clk 0:00:18]} 29. Qg1+ {[%clk 0:00:21]}  Kh7 {[%clk 0:00:19]} 30. Nd1 {[%clk 0:00:18]}  Qc2+ {[%clk 0:00:18]} 31. Nf2 {[%clk 0:00:18]}  Qc3 {[%clk 0:00:14]} 32. Nd1 {[%clk 0:00:17]}  Qc2+ {[%clk 0:00:13]} 33. Nf2 {[%clk 0:00:17]}  Qxa4 {[%clk 0:00:10]} 34. Qc1 {[%clk 0:00:16]}  Qc6 {[%clk 0:00:09]} 35. Qg1 {[%clk 0:00:16]}  Qc2 {[%clk 0:00:09]} 36. Qe1 {[%clk 0:00:15]}  Qc8 {[%clk 0:00:07]} 37. b5 {[%clk 0:00:14]}  axb5 {[%clk 0:00:07]} 38. Qb4 {[%clk 0:00:14]}  Nc6 {[%clk 0:00:06]} 39. Qc5 {[%clk 0:00:13]}  Qc7 {[%clk 0:00:06]} 40. Qf8 {[%clk 0:00:12]}  Qg7 {[%clk 0:00:07]} 41. Qxg7+ {[%clk 0:00:09]}  Kxg7 {[%clk 0:00:08]} 42. Nd1 {[%clk 0:00:08]}  b4 {[%clk 0:00:07]} 43. Be8 {[%clk 0:00:07]}  Be1 {[%clk 0:00:05]} 44. Bd7 {[%clk 0:00:06]}  Kf7 {[%clk 0:00:05]} 45. Nb2 {[%clk 0:00:06]}  Bc3 {[%clk 0:00:05]} 46. Na4 {[%clk 0:00:03]}  Ke7 {[%clk 0:00:06]} 47. Bc8 {[%clk 0:00:02]}  Na5 {[%clk 0:00:06]} 48. Nc5 {[%clk 0:00:02]}  b3 {[%clk 0:00:03]} 49. Bc1 {[%clk 0:00:01]}  b2 {[%clk 0:00:03]} 50. Bxb2 {[%clk 0:00:00]}  Bxb2 {[%clk 0:00:04]} 0-1


[Site "https://www.chess.com"]

[Event "Titled Tuesday Blitz May 9 Late 2023"]
[White "Danielyan, Vahe"]
[Black "Al-Saffar, Araz Basim Mohammed S"]
[WhiteFideId "13304828"]
[BlackFideId "4801040"]
[WhiteElo "2423"]
[BlackElo "2304"]
[Result "1-0"]
[Round "03"]
[TimeControl "180+2"]
[Date "2023.05.09"]
[WhiteClock "0:00:51"]
[BlackClock "0:00:06"]

1. c4 {[%clk 0:03:00]}  Nf6 {[%clk 0:02:57]} 2. g3 {[%clk 0:03:00]}  d5 {[%clk 0:02:49]} 3. cxd5 {[%clk 0:02:59]}  Nxd5 {[%clk 0:02:48]} 4. Bg2 {[%clk 0:02:59]}  c5 {[%clk 0:02:46]} 5. Nc3 {[%clk 0:02:58]}  Nc7 {[%clk 0:02:46]} 6. Nf3 {[%clk 0:02:57]}  Nc6 {[%clk 0:02:45]} 7. O-O {[%clk 0:02:57]}  e5 {[%clk 0:02:45]} 8. d3 {[%clk 0:02:57]}  Be7 {[%clk 0:02:45]} 9. b3 {[%clk 0:02:51]}  O-O {[%clk 0:02:44]} 10. Bb2 {[%clk 0:02:52]}  f6 {[%clk 0:02:31]} 11. Rc1 {[%clk 0:02:51]}  Nd4 {[%clk 0:02:20]} 12. Nxd4 {[%clk 0:02:51]}  cxd4 {[%clk 0:02:19]} 13. Ne4 {[%clk 0:02:51]}  Nd5 {[%clk 0:02:12]} 14. Nc5 {[%clk 0:02:39]}  b6 {[%clk 0:02:08]} 15. Ne4 {[%clk 0:02:38]}  Bb7 {[%clk 0:02:00]} 16. a3 {[%clk 0:02:37]}  Rc8 {[%clk 0:01:59]} 17. b4 {[%clk 0:02:37]}  Rxc1 {[%clk 0:01:58]} 18. Qxc1 {[%clk 0:02:36]}  Qd7 {[%clk 0:01:57]} 19. Qc4 {[%clk 0:02:35]}  Rc8 {[%clk 0:01:54]} 20. Qb3 {[%clk 0:02:35]}  Kf8 {[%clk 0:01:53]} 21. h4 {[%clk 0:02:34]}  Bc6 {[%clk 0:01:39]} 22. Rc1 {[%clk 0:02:32]}  Rc7 {[%clk 0:01:34]} 23. Nd2 {[%clk 0:02:10]}  Bd8 {[%clk 0:01:21]} 24. Rxc6 {[%clk 0:02:09]}  Qxc6 {[%clk 0:01:17]} 25. Bxd5 {[%clk 0:02:07]}  Qc2 {[%clk 0:01:17]} 26. Ne4 {[%clk 0:01:44]}  Qxe2 {[%clk 0:01:09]} 27. Bc4 {[%clk 0:01:38]}  Be7 {[%clk 0:00:55]} 28. b5 {[%clk 0:01:38]}  h6 {[%clk 0:00:49]} 29. a4 {[%clk 0:01:38]}  f5 {[%clk 0:00:48]} 30. Bg8 {[%clk 0:01:23]}  Qe1+ {[%clk 0:00:26]} 31. Kg2 {[%clk 0:01:22]}  Bb4 {[%clk 0:00:26]} 32. Bh7 {[%clk 0:01:01]}  fxe4 {[%clk 0:00:24]} 33. Qg8+ {[%clk 0:01:00]}  Ke7 {[%clk 0:00:24]} 34. Qxg7+ {[%clk 0:01:01]}  Kd6 {[%clk 0:00:24]} 35. Qf6+ {[%clk 0:00:58]}  Kd7 {[%clk 0:00:16]} 36. Bf5+ {[%clk 0:00:51]}  Ke8 {[%clk 0:00:16]} 37. Qxe5+ {[%clk 0:00:52]}  Re7 {[%clk 0:00:17]} 38. Qh8+ {[%clk 0:00:51]}  Kf7 {[%clk 0:00:15]} 39. Bxd4 {[%clk 0:00:51]}  Bc5 {[%clk 0:00:06]} 40. Qg7+ {[%clk 0:00:50]}  Ke8 {[%clk 0:00:06]} 41. Qg8# {[%clk 0:00:51]} 1-0


[Site "https://www.chess.com"]

[Event "Titled Tuesday Blitz May 9 Late 2023"]
[White "Itkis, Boris"]
[Black "Sanhueza, Cristian"]
[WhiteFideId "1209167"]
[BlackFideId "116815"]
[WhiteElo "2216"]
[BlackElo "2174"]
[Result "1-0"]
[Round "03"]
[TimeControl "180+2"]
[Date "2023.05.09"]
[WhiteClock "0:01:13"]
[BlackClock "0:00:46"]

1. c4 {[%clk 0:03:00]}  Nf6 {[%clk 0:02:59]} 2. Nf3 {[%clk 0:03:01]}  g6 {[%clk 0:03:00]} 3. b4 {[%clk 0:03:01]}  Bg7 {[%clk 0:03:00]} 4. Bb2 {[%clk 0:03:01]}  O-O {[%clk 0:03:00]} 5. g3 {[%clk 0:03:01]}  d6 {[%clk 0:03:01]} 6. Bg2 {[%clk 0:03:01]}  a5 {[%clk 0:03:02]} 7. b5 {[%clk 0:03:01]}  Nbd7 {[%clk 0:03:02]} 8. O-O {[%clk 0:03:01]}  e5 {[%clk 0:03:02]} 9. d3 {[%clk 0:03:02]}  Re8 {[%clk 0:03:02]} 10. Nc3 {[%clk 0:03:02]}  c6 {[%clk 0:02:59]} 11. a4 {[%clk 0:03:01]}  d5 {[%clk 0:02:57]} 12. Nd2 {[%clk 0:02:57]}  d4 {[%clk 0:02:38]} 13. Nce4 {[%clk 0:02:37]}  Nxe4 {[%clk 0:02:30]} 14. Nxe4 {[%clk 0:02:38]}  Nf6 {[%clk 0:02:16]} 15. Ba3 {[%clk 0:02:25]}  Nxe4 {[%clk 0:02:13]} 16. Bxe4 {[%clk 0:02:26]}  f5 {[%clk 0:02:08]} 17. Bg2 {[%clk 0:02:26]}  e4 {[%clk 0:02:09]} 18. Rb1 {[%clk 0:02:22]}  Bd7 {[%clk 0:01:56]} 19. Qc2 {[%clk 0:02:22]}  cxb5 {[%clk 0:01:54]} 20. axb5 {[%clk 0:02:17]}  Rc8 {[%clk 0:01:12]} 21. dxe4 {[%clk 0:02:10]}  fxe4 {[%clk 0:01:13]} 22. Bxe4 {[%clk 0:02:09]}  Rxe4 {[%clk 0:01:14]} 23. Qxe4 {[%clk 0:02:08]}  Bf5 {[%clk 0:01:13]} 24. Qxb7 {[%clk 0:01:57]}  Bxb1 {[%clk 0:01:09]} 25. Rxb1 {[%clk 0:01:58]}  Rxc4 {[%clk 0:01:08]} 26. b6 {[%clk 0:01:55]}  d3 {[%clk 0:01:06]} 27. exd3 {[%clk 0:01:52]}  Qxd3 {[%clk 0:01:06]} 28. Qa8+ {[%clk 0:01:30]}  Kf7 {[%clk 0:01:06]} 29. Qa7+ {[%clk 0:01:27]}  Kg8 {[%clk 0:00:59]} 30. Re1 {[%clk 0:01:14]}  Re4 {[%clk 0:00:46]} 31. Qa8+ {[%clk 0:01:13]} 1-0


[Site "https://www.chess.com"]

[Event "Titled Tuesday Blitz May 9 Late 2023"]
[White "Sarkar, Justin"]
[Black "Garcia Cuenca, Victor"]
[WhiteFideId "2010011"]
[BlackFideId "2250829"]
[WhiteElo "2168"]
[BlackElo "2329"]
[Result "0-1"]
[Round "03"]
[TimeControl "180+2"]
[Date "2023.05.09"]
[WhiteClock "0:00:00"]
[BlackClock "0:01:26"]

1. d4 {[%clk 0:02:55]}  d6 {[%clk 0:03:00]} 2. e4 {[%clk 0:02:35]}  c6 {[%clk 0:02:59]} 3. c4 {[%clk 0:02:29]}  g6 {[%clk 0:02:59]} 4. Nc3 {[%clk 0:02:26]}  Bg7 {[%clk 0:02:59]} 5. Be3 {[%clk 0:02:24]}  Nf6 {[%clk 0:02:59]} 6. f3 {[%clk 0:02:22]}  a6 {[%clk 0:02:59]} 7. a4 {[%clk 0:02:03]}  a5 {[%clk 0:02:58]} 8. Qd2 {[%clk 0:02:01]}  Na6 {[%clk 0:02:58]} 9. Bd3 {[%clk 0:01:58]}  Nb4 {[%clk 0:02:56]} 10. Bb1 {[%clk 0:01:49]}  e5 {[%clk 0:02:57]} 11. d5 {[%clk 0:01:32]}  O-O {[%clk 0:02:51]} 12. Nge2 {[%clk 0:01:30]}  cxd5 {[%clk 0:02:47]} 13. cxd5 {[%clk 0:01:28]}  Nd7 {[%clk 0:02:37]} 14. Nb5 {[%clk 0:01:18]}  Nc5 {[%clk 0:02:22]} 15. Bxc5 {[%clk 0:01:13]}  dxc5 {[%clk 0:02:23]} 16. O-O {[%clk 0:01:13]}  Bd7 {[%clk 0:02:13]} 17. Nec3 {[%clk 0:01:09]}  c4 {[%clk 0:02:14]} 18. Ba2 {[%clk 0:00:40]}  Rc8 {[%clk 0:02:09]} 19. Na3 {[%clk 0:00:22]}  Qb6+ {[%clk 0:01:42]} 20. Kh1 {[%clk 0:00:19]}  Qd4 {[%clk 0:01:39]} 21. Rad1 {[%clk 0:00:08]}  Qxd2 {[%clk 0:01:29]} 22. Rxd2 {[%clk 0:00:07]}  Bh6 {[%clk 0:01:29]} 23. Re2 {[%clk 0:00:04]}  Nxa2 {[%clk 0:01:26]} 24. Nxa2 {[%clk 0:00:04]}  Bxa4 {[%clk 0:01:27]} 25. Nc3 {[%clk 0:00:00]}  Bd7 {[%clk 0:01:26]} 0-1


[Site "https://www.chess.com"]

[Event "Titled Tuesday Blitz May 9 Late 2023"]
[White "ArtemDyachuk"]
[Black "Pavlidou, Ekaterini"]
[BlackFideId "4213262"]
[WhiteElo "2532"]
[BlackElo "2126"]
[Result "0-1"]
[Round "03"]
[TimeControl "180+2"]
[Date "2023.05.09"]
[WhiteClock "0:00:00"]
[BlackClock "0:00:01"]

1. e4 {[%clk 0:03:00]}  c5 {[%clk 0:02:59]} 2. Nf3 {[%clk 0:03:00]}  Nc6 {[%clk 0:03:00]} 3. d4 {[%clk 0:02:59]}  cxd4 {[%clk 0:03:00]} 4. Nxd4 {[%clk 0:03:00]}  e5 {[%clk 0:02:59]} 5. Nb5 {[%clk 0:02:56]}  d6 {[%clk 0:02:58]} 6. N1c3 {[%clk 0:02:51]}  a6 {[%clk 0:02:56]} 7. Na3 {[%clk 0:02:51]}  Be6 {[%clk 0:02:56]} 8. Bc4 {[%clk 0:02:47]}  b5 {[%clk 0:02:52]} 9. Bd5 {[%clk 0:02:45]}  Rc8 {[%clk 0:02:51]} 10. Nab1 {[%clk 0:02:36]}  Nd4 {[%clk 0:02:31]} 11. Be3 {[%clk 0:02:33]}  Qf6 {[%clk 0:02:28]} 12. O-O {[%clk 0:02:30]}  b4 {[%clk 0:02:18]} 13. Bxd4 {[%clk 0:02:24]}  exd4 {[%clk 0:02:16]} 14. Bxe6 {[%clk 0:02:23]}  fxe6 {[%clk 0:02:15]} 15. Ne2 {[%clk 0:02:23]}  e5 {[%clk 0:02:14]} 16. Qd3 {[%clk 0:02:21]}  Ne7 {[%clk 0:01:39]} 17. Nd2 {[%clk 0:01:50]}  d5 {[%clk 0:01:31]} 18. exd5 {[%clk 0:01:47]}  Nxd5 {[%clk 0:01:31]} 19. f4 {[%clk 0:01:36]}  exf4 {[%clk 0:01:15]} 20. Rae1 {[%clk 0:01:27]}  Be7 {[%clk 0:00:56]} 21. Ne4 {[%clk 0:01:14]}  Qh4 {[%clk 0:00:32]} 22. Qb3 {[%clk 0:00:45]}  Ne3 {[%clk 0:00:28]} 23. Nxf4 {[%clk 0:00:45]}  Nxf1 {[%clk 0:00:21]} 24. Nd6+ {[%clk 0:00:44]}  Kd8 {[%clk 0:00:16]} 25. Nf7+ {[%clk 0:00:24]}  Ke8 {[%clk 0:00:15]} 26. Nd6+ {[%clk 0:00:05]}  Kd8 {[%clk 0:00:15]} 27. Qd5 {[%clk 0:00:04]}  Ne3 {[%clk 0:00:09]} 28. Nf7+ {[%clk 0:00:02]}  Ke8 {[%clk 0:00:09]} 29. Nd6+ {[%clk 0:00:02]}  Kd8 {[%clk 0:00:09]} 30. Nb7+ {[%clk 0:00:01]}  Kc7 {[%clk 0:00:09]} 31. Qe5+ {[%clk 0:00:01]}  Kxb7 {[%clk 0:00:08]} 32. Qe4+ {[%clk 0:00:02]}  Rc6 {[%clk 0:00:08]} 33. g3 {[%clk 0:00:03]}  Qh3 {[%clk 0:00:08]} 34. Qxe7+ {[%clk 0:00:02]}  Rc7 {[%clk 0:00:07]} 35. Qxb4+ {[%clk 0:00:03]}  Ka8 {[%clk 0:00:07]} 36. Rxe3 {[%clk 0:00:01]}  dxe3 {[%clk 0:00:06]} 37. Qe4+ {[%clk 0:00:02]}  Rb7 {[%clk 0:00:06]} 38. Nd5 {[%clk 0:00:01]}  Rc8 {[%clk 0:00:03]} 39. Nb6+ {[%clk 0:00:01]}  Kb8 {[%clk 0:00:04]} 40. Qe5+ {[%clk 0:00:01]}  Rbc7 {[%clk 0:00:03]} 41. Qxe3 {[%clk 0:00:01]}  Qf5 {[%clk 0:00:01]} 42. Qb3 {[%clk 0:00:00]}  Qb5 {[%clk 0:00:01]} 0-1


[Site "https://www.chess.com"]